[Event "AUT 2nd BL Ost 2021-22"]
[Site "Austria"]
[Date "2022.04.04"]
[Round "11.9"]
[White "Wagner, Leopold Franziskus"]
[Black "Steindl, Johannes"]
[Result "0-1"]
[ECO "B55"]
[WhiteElo "2061"]
[BlackElo "2237"]
[Annotator "ChessBase"]
[PlyCount "68"]
[EventDate "2022.04.01"]
[EventType "team-tourn"]
[EventCountry "AUT"]
[SourceTitle "playchess.com"]
[Source "ChessBase"]
[SourceQuality "1"]
[TimeControl "40/5400+30:1800+30"]

1. e4 {[%emt 0:00:01]} c5 {[%emt 0:00:04]} 2. Nf3 {[%emt 0:00:06]} d6 {[%emt 0:00:03]} 3. d4 {[%emt 0:00:05]} cxd4 {[%emt 0:00:03]} 4. Nxd4 {[%emt 0:00:08]} Nf6 {[%emt 0:00:05]} 5. f3 {[%emt 0:00:04]} e5 {[%emt 0:00:04]} 6. Nb3 {[%emt 0:00:04]} d5 {[%emt 0:00:03]} 7. Bg5 {[%emt 0:00:06]} Be6 {[%emt 0:00:03]} 8. exd5 {[%emt 0:02:51]} Qxd5 {[%emt 0:00:09]} 9. Nc3 {[%emt 0:14:12]} Qxd1+ {[%emt 0:11:30]} 10. Rxd1 {[%emt 0:00:08]} Nbd7 {[%emt 0:00:04]} 11. Bb5 {[%emt 0:04:29]} Rc8 {[%emt 0:10:34]} 12. O-O {[%emt 0:15:13]} a6 {[%emt 0:02:32]} 13. Bd3 {[%emt 0:03:32]} Be7 {[%emt 0:02:15]} 14. Rfe1 {[%emt 0:01:19]} Nd5 {[%emt 0:03:49]} 15. Nxd5 {[%emt 0:11:31]} Bxg5 {[%emt 0:00:09]} 16. Ne3 {[%emt 0:00:58]} b5 {[%emt 0:06:14]} 17. Nf5 {[%emt 0:01:27]} O-O {[%emt 0:03:17]} 18. Nd6 {[%emt 0:04:57]} Rc6 {[%emt 0:01:57]} 19. Be4 {[%emt 0:00:00]} Rc7 {[%emt 0:08:09]} 20. Bf5 {[%emt 0:02:54]} Bxf5 {[%emt 0:01:46]} 21. Nxf5 {[%emt 0:00:02]} g6 {[%emt 0:01:50]} 22. Ng3 {[%emt 0:01:37]} b4 {[%emt 0:04:50]} 23. Ne4 {[%emt 0:02:55]} Be7 {[%emt 0:00:13]} 24. Re2 {[%emt 0:01:34]} Nb6 {[%emt 0:01:53]} 25. Nf2 {[%emt 0:00:44]} Nc4 {[%emt 0:02:54]} 26. Nd3 {[%emt 0:00:06]} Rd8 {[%emt 0:04:34]} 27. Nd2 {[%emt 0:00:46]} Nxb2 {[%emt 0:01:45]} 28. Nxb2 {[%emt 0:03:29]} Rxc2 {[%emt 0:00:06]} 29. Nbc4 {[%emt 0:07:35]} Rxc4 {[%emt 0:01:04]} 30. Rxe5 {[%emt 0:00:01]} Rc2 {[%emt 0:01:17]} 31. Rxe7 {[%emt 0:03:04]} Rdxd2 {[%emt 0:00:06]} 32. Rxd2 {[%emt 0:00:50]} Rxd2 {[%emt 0:00:04]} 33. Re4 {[%emt 0:01:00]} a5 {[%emt 0:00:05]} 34. a3 {[%emt 0:00:07]} bxa3 {[%emt 0:00:41]} 0-1

[Event "AUT 2nd BL Ost 2021-22"]
[Site "Austria"]
[Date "2022.04.04"]
[Round "11.10"]
[White "Wetscherek, Gerhard"]
[Black "Balint, Peter"]
[Result "0-1"]
[ECO "B40"]
[WhiteElo "2105"]
[BlackElo "2005"]
[Annotator "ChessBase"]
[PlyCount "58"]
[EventDate "2022.04.01"]
[EventType "team-tourn"]
[EventCountry "AUT"]
[SourceTitle "playchess.com"]
[Source "ChessBase"]
[SourceQuality "1"]
[TimeControl "40/5400+30:1800+30"]

1. e4 {[%emt 0:00:04]} c5 {[%emt 0:00:05]} 2. Nf3 {[%emt 0:00:09]} e6 {[%emt 0:00:09]} 3. b3 {[%emt 0:03:02]} Nc6 {[%emt 0:01:51]} 4. Bb2 {[%emt 0:00:20]} d5 {[%emt 0:01:26]} 5. exd5 {[%emt 0:00:16]} exd5 {[%emt 0:00:37]} 6. d4 {[%emt 0:01:23]} Nf6 {[%emt 0:00:19]} 7. Be2 {[%emt 0:00:44]} Bd6 {[%emt 0:01:44]} 8. dxc5 {[%emt 0:01:54]} Bxc5 {[%emt 0:00:06]} 9. O-O {[%emt 0:03:13]} O-O {[%emt 0:01:20]} 10. Nc3 {[%emt 0:00:43]} a6 {[%emt 0:05:36]} 11. a3 {[%emt 0:16:26]} Re8 {[%emt 0:07:22]} 12. h3 {[%emt 0:06:46]} Qd6 {[%emt 0:03:11]} 13. b4 {[%emt 0:02:56]} Ba7 {[%emt 0:04:11]} 14. Bc4 {[%emt 0:03:03]} Bxh3 {[%emt 0:03:40]} 15. Ng5 {[%emt 0:05:31]} Qg3 {[%emt 0:02:16]} 16. Bxd5 {[%emt 0:04:28]} Qxg5 {[%emt 0:01:42]} 17. Bc1 {[%emt 0:02:38]} Qg6 {[%emt 0:00:55]} 18. Qf3 {[%emt 0:01:43]} Bg4 {[%emt 0:00:27]} 19. Qg3 {[%emt 0:00:28]} Nd4 {[%emt 0:02:15]} 20. Bxb7 {[%emt 0:01:33]} Rab8 {[%emt 0:00:06]} 21. Bxa6 {[%emt 0:00:22]} Nh5 {[%emt 0:01:31]} 22. Qd3 {[%emt 0:04:10]} Nf3+ {[%emt 0:00:23]} 23. gxf3 {[%emt 0:00:07]} Bf5+ {[%emt 0:00:03]} 24. Kh2 {[%emt 0:00:18]} Bxd3 {[%emt 0:00:03]} 25. Bxd3 {[%emt 0:00:05]} Qd6+ {[%emt 0:00:09]} 26. Kg2 {[%emt 0:01:31]} Bxf2 {[%emt 0:00:08]} 27. Rxf2 {[%emt 0:00:45]} Qg3+ {[%emt 0:00:19]} 28. Kf1 {[%emt 0:00:16]} Qh3+ {[%emt 0:00:04]} 29. Rg2 {[%emt 0:00:08]} Qh1+ {[%emt 0:00:03]} 0-1

[Event "AUT 2nd BL Ost 2021-22"]
[Site "Austria"]
[Date "2022.04.04"]
[Round "11.11"]
[White "Castaneda Estrada, Jefferson Smith"]
[Black "Mayrhuber, Nikola"]
[Result "1-0"]
[ECO "C09"]
[WhiteElo "1373"]
[BlackElo "2109"]
[Annotator "ChessBase"]
[PlyCount "129"]
[EventDate "2022.04.01"]
[EventType "team-tourn"]
[EventCountry "AUT"]
[SourceTitle "playchess.com"]
[Source "ChessBase"]
[SourceQuality "1"]
[TimeControl "40/5400+30:1800+30"]

1. e4 {[%emt 0:00:04]} e6 {[%emt 0:00:16]} 2. d4 {[%emt 0:00:08]} d5 {[%emt 0:00:04]} 3. Nd2 {[%emt 0:00:22]} c5 {[%emt 0:00:29]} 4. exd5 {[%emt 0:01:06]} exd5 {[%emt 0:01:34]} 5. Ngf3 {[%emt 0:00:19]} Nc6 {[%emt 0:00:07]} 6. Bb5 {[%emt 0:01:27]} Qe7+ {[%emt 0:00:14]} 7. Qe2 {[%emt 0:03:03]} Qxe2+ {[%emt 0:02:15]} 8. Kxe2 {[%emt 0:03:36]} a6 {[%emt 0:00:28]} 9. Bxc6+ {[%emt 0:00:38]} bxc6 {[%emt 0:00:05]} 10. Re1 {[%emt 0:07:42]} f6 {[%emt 0:01:05]} 11. Kf1+ {[%emt 0:00:39]} Kf7 {[%emt 0:00:42]} 12. dxc5 {[%emt 0:02:02]} Bxc5 {[%emt 0:00:28]} 13. Nb3 {[%emt 0:00:10]} Bd6 {[%emt 0:03:08]} 14. Be3 {[%emt 0:12:23]} Bg4 {[%emt 0:17:56]} 15. Nfd2 {[%emt 0:09:23]} a5 {[%emt 0:07:19]} 16. Bc5 {[%emt 0:11:09]} Bc7 {[%emt 0:07:13]} 17. h3 {[%emt 0:03:57]} Bd7 {[%emt 0:01:27]} 18. a4 {[%emt 0:06:55]} Rb8 {[%emt 0:05:29]} 19. Nf3 {[%emt 0:03:06]} g5 {[%emt 0:07:51]} 20. Nfd4 {[%emt 0:01:48]} h5 {[%emt 0:01:53]} 21. Re2 {[%emt 0:02:33]} Kg6 {[%emt 0:10:20]} 22. Ne6 {[%emt 0:05:37]} Be5 {[%emt 0:11:18]} 23. Nf8+ {[%emt 0:03:15]} Rxf8 {[%emt 0:00:07]} 24. Bxf8 {[%emt 0:00:08]} Bxb2 {[%emt 0:03:16]} 25. Rb1 {[%emt 0:00:49]} Bc3 {[%emt 0:02:13]} 26. Nc5 {[%emt 0:03:17]} Bf5 {[%emt 0:02:36]} 27. Rb7 {[%emt 0:05:34]} h4 {[%emt 0:00:37]} 28. Rg7+ {[%emt 0:04:41]} Kh5 {[%emt 0:02:14]} 29. Bd6 {[%emt 0:02:10]} Nh6 {[%emt 0:00:00]} 30. f3 {[%emt 0:01:36]} Bg6 {[%emt 0:04:15]} 31. Rc7 {[%emt 0:00:39]} Rb8 {[%emt 0:02:31]} 32. Rb7 {[%emt 0:00:29]} Rd8 {[%emt 0:01:10]} 33. Rd7 {[%emt 0:01:03]} Rxd7 {[%emt 0:02:54]} 34. Nxd7 {[%emt 0:00:06]} Nf5 {[%emt 0:00:19]} 35. Bc7 {[%emt 0:01:33]} Bf7 {[%emt 0:01:56]} 36. Nc5 {[%emt 0:00:53]} d4 {[%emt 0:01:09]} 37. Nd3 {[%emt 0:01:34]} Ne3+ {[%emt 0:00:41]} 38. Kg1 {[%emt 0:00:28]} Bc4 {[%emt 0:00:43]} 39. Bd6 {[%emt 0:00:51]} Kg6 {[%emt 0:00:18]} 40. f4 {[%emt 0:01:25]} Nf5 {[%emt 0:00:54]} 41. Bc7 {[%emt 0:05:29]} Ne3 {[%emt 0:09:25]} 42. fxg5 {[%emt 0:00:17]} Bxd3 {[%emt 0:03:55]} 43. cxd3 {[%emt 0:00:46]} fxg5 {[%emt 0:00:07]} 44. Kf2 {[%emt 0:02:32]} c5 {[%emt 0:04:43]} 45. Kf3 {[%emt 0:00:59]} Kf5 {[%emt 0:01:45]} 46. g3 {[%emt 0:01:51]} hxg3 {[%emt 0:00:47]} 47. Bxg3 {[%emt 0:00:58]} Bb4 {[%emt 0:05:39]} 48. Be1 {[%emt 0:07:59]} Ke5 {[%emt 0:05:57]} 49. Bf2 {[%emt 0:01:41]} Kd5 {[%emt 0:01:10]} 50. Bxe3 {[%emt 0:00:33]} dxe3 {[%emt 0:00:07]} 51. Kxe3 {[%emt 0:00:30]} c4 {[%emt 0:00:21]} 52. Rg2 {[%emt 0:02:53]} Bc5+ {[%emt 0:01:06]} 53. Kd2 {[%emt 0:00:55]} Be7 {[%emt 0:00:35]} 54. Rg4 {[%emt 0:00:27]} cxd3 {[%emt 0:00:48]} 55. Kxd3 {[%emt 0:00:09]} Bf6 {[%emt 0:00:16]} 56. Rc4 {[%emt 0:01:00]} Be5 {[%emt 0:00:51]} 57. Rc8 {[%emt 0:00:18]} Ke6 {[%emt 0:00:44]} 58. Ke4 {[%emt 0:00:14]} Bd6 {[%emt 0:00:57]} 59. Ra8 {[%emt 0:00:39]} Bb4 {[%emt 0:00:11]} 60. Ra6+ {[%emt 0:00:14]} Kf7 {[%emt 0:00:33]} 61. Kf5 {[%emt 0:00:21]} Bd2 {[%emt 0:00:06]} 62. Rg6 {[%emt 0:00:27]} Be3 {[%emt 0:00:40]} 63. Rxg5 {[%emt 0:00:52]} Bxg5 {[%emt 0:00:06]} 64. Kxg5 {[%emt 0:00:06]} Kg7 {[%emt 0:00:09]} 65. Kf5 {[%emt 0:00:08]} 1-0

[Event "AUT 2nd BL Ost 2021-22"]
[Site "Austria"]
[Date "2022.04.04"]
[Round "11.12"]
[White "Mayrhuber, Tobias"]
[Black "Stadler, Peter"]
[Result "1-0"]
[ECO "B22"]
[WhiteElo "2037"]
[BlackElo "2008"]
[Annotator "ChessBase"]
[PlyCount "85"]
[EventDate "2022.04.01"]
[EventType "team-tourn"]
[EventCountry "AUT"]
[SourceTitle "playchess.com"]
[Source "ChessBase"]
[SourceQuality "1"]
[TimeControl "40/5400+30:1800+30"]

1. e4 {[%emt 0:00:04]} c5 {[%emt 0:00:05]} 2. Nf3 {[%emt 0:01:40]} e6 {[%emt 0:00:07]} 3. c3 {[%emt 0:00:28]} Nf6 {[%emt 0:00:43]} 4. e5 {[%emt 0:01:11]} Nd5 {[%emt 0:00:09]} 5. Bc4 {[%emt 0:01:38]} Nb6 {[%emt 0:00:40]} 6. Bb3 {[%emt 0:00:11]} Nc6 {[%emt 0:01:05]} 7. O-O {[%emt 0:02:05]} c4 {[%emt 0:03:11]} 8. Bc2 {[%emt 0:00:07]} d6 {[%emt 0:00:05]} 9. exd6 {[%emt 0:09:16]} Qxd6 {[%emt 0:02:47]} 10. b3 {[%emt 0:04:55]} Be7 {[%emt 0:01:49]} 11. Na3 {[%emt 0:00:39]} cxb3 {[%emt 0:01:01]} 12. axb3 {[%emt 0:00:25]} a6 {[%emt 0:00:36]} 13. d4 {[%emt 0:01:37]} Qd5 {[%emt 0:10:04]} 14. Re1 {[%emt 0:05:59]} Qh5 {[%emt 0:03:39]} 15. c4 {[%emt 0:17:09]} O-O {[%emt 0:01:58]} 16. Bb2 {[%emt 0:06:49]} Bf6 {[%emt 0:01:48]} 17. Ne5 {[%emt 0:04:52]} Qxd1 {[%emt 0:00:07]} 18. Raxd1 {[%emt 0:00:10]} Nxe5 {[%emt 0:00:55]} 19. dxe5 {[%emt 0:00:09]} Be7 {[%emt 0:00:06]} 20. Be4 {[%emt 0:03:13]} Rb8 {[%emt 0:01:54]} 21. Nc2 {[%emt 0:05:24]} h6 {[%emt 0:05:46]} 22. Bc3 {[%emt 0:02:32]} Re8 {[%emt 0:15:20]} 23. Ba5 {[%emt 0:05:49]} Na8 {[%emt 0:03:10]} 24. f4 {[%emt 0:04:00]} Bc5+ {[%emt 0:03:26]} 25. Kf1 {[%emt 0:00:19]} Bb6 {[%emt 0:00:07]} 26. Bb4 {[%emt 0:01:07]} Bc7 {[%emt 0:01:31]} 27. Bd6 {[%emt 0:01:41]} Bxd6 {[%emt 0:03:00]} 28. Rxd6 {[%emt 0:00:15]} Kf8 {[%emt 0:03:18]} 29. Red1 {[%emt 0:01:31]} Ke7 {[%emt 0:01:20]} 30. b4 {[%emt 0:04:37]} Nc7 {[%emt 0:01:10]} 31. Ke2 {[%emt 0:02:06]} f5 {[%emt 0:01:08]} 32. exf6+ {[%emt 0:01:40]} gxf6 {[%emt 0:00:36]} 33. g3 {[%emt 0:02:44]} Rf8 {[%emt 0:02:44]} 34. R1d3 {[%emt 0:03:33]} Rg8 {[%emt 0:00:36]} 35. Ne3 {[%emt 0:02:12]} Rf8 {[%emt 0:00:56]} 36. c5 {[%emt 0:00:54]} Nb5 {[%emt 0:00:13]} 37. Rb6 {[%emt 0:00:28]} Rd8 {[%emt 0:01:22]} 38. Nc4 {[%emt 0:02:59]} Rxd3 {[%emt 0:01:11]} 39. Kxd3 {[%emt 0:00:26]} Kd7 {[%emt 0:00:28]} 40. c6+ {[%emt 0:02:03]} Kc7 {[%emt 0:02:55]} 41. cxb7 {[%emt 0:30:41]} Bxb7 {[%emt 0:30:35]} 42. Bxb7 {[%emt 0:00:00]} Rxb7 {[%emt 0:00:00]} 43. Rxe6 {[%emt 0:00:00]} 1-0

[Event "AUT 2nd BL Ost 2021-22"]
[Site "Austria"]
[Date "2022.04.04"]
[Round "11.13"]
[White "Lizak, Peter"]
[Black "Loeffler, Stefan"]
[Result "0-1"]
[ECO "B15"]
[WhiteElo "2403"]
[BlackElo "2334"]
[Annotator "ChessBase"]
[PlyCount "70"]
[EventDate "2022.04.01"]
[EventType "team-tourn"]
[EventCountry "AUT"]
[SourceTitle "playchess.com"]
[Source "ChessBase"]
[SourceQuality "1"]
[TimeControl "40/5400+30:1800+30"]

1. e4 {[%emt 0:00:03]} c6 {[%emt 0:01:20]} 2. d4 {[%emt 0:00:32]} d5 {[%emt 0:00:02]} 3. Nc3 {[%emt 0:00:11]} a6 {[%emt 0:00:24]} 4. Nf3 {[%emt 0:00:54]} Bg4 {[%emt 0:00:08]} 5. h3 {[%emt 0:00:20]} Bxf3 {[%emt 0:00:47]} 6. Qxf3 {[%emt 0:00:16]} e6 {[%emt 0:01:12]} 7. Bd3 {[%emt 0:08:21]} Nf6 {[%emt 0:03:21]} 8. O-O {[%emt 0:04:55]} dxe4 {[%emt 0:15:15]} 9. Nxe4 {[%emt 0:00:08]} Nxe4 {[%emt 0:00:03]} 10. Qxe4 {[%emt 0:00:23]} Nd7 {[%emt 0:00:05]} 11. c3 {[%emt 0:12:16]} Nf6 {[%emt 0:02:40]} 12. Qh4 {[%emt 0:02:34]} Be7 {[%emt 0:14:25]} 13. Re1 {[%emt 0:05:56]} c5 {[%emt 0:01:39]} 14. Bg5 {[%emt 0:07:12]} cxd4 {[%emt 0:01:55]} 15. Rad1 {[%emt 0:02:37]} Qa5 {[%emt 0:02:31]} 16. cxd4 {[%emt 0:07:05]} Qxa2 {[%emt 0:01:25]} 17. d5 {[%emt 0:08:39]} Qxd5 {[%emt 0:06:23]} 18. Bxa6 {[%emt 0:15:06]} Qc6 {[%emt 0:00:15]} 19. Bd3 {[%emt 0:00:31]} Ra4 {[%emt 0:00:31]} 20. g4 {[%emt 0:01:27]} h6 {[%emt 0:15:13]} 21. Rc1 {[%emt 0:18:07]} Qd7 {[%emt 0:00:14]} 22. Bxf6 {[%emt 0:01:03]} Bxf6 {[%emt 0:00:44]} 23. Qh5 {[%emt 0:00:08]} Bg5 {[%emt 0:03:33]} 24. Rc5 {[%emt 0:02:16]} Qxd3 {[%emt 0:13:02]} 25. Rxe6+ {[%emt 0:00:21]} Kd8 {[%emt 0:00:48]} 26. Qxf7 {[%emt 0:00:52]} Ra1+ {[%emt 0:03:03]} 27. Kh2 {[%emt 0:00:03]} Qd7 {[%emt 0:00:22]} 28. Qf5 {[%emt 0:01:16]} Rd1 {[%emt 0:00:44]} 29. Ra5 {[%emt 0:00:26]} Qc7+ {[%emt 0:07:25]} 30. Kg2 {[%emt 0:00:10]} Qc4 {[%emt 0:00:26]} 31. Ra8+ {[%emt 0:01:16]} Kc7 {[%emt 0:00:05]} 32. Qe5+ {[%emt 0:00:31]} Kd7 {[%emt 0:00:08]} 33. Rd6+ {[%emt 0:00:32]} Rxd6 {[%emt 0:00:15]} 34. Qxg7+ {[%emt 0:00:10]} Kc6 {[%emt 0:00:44]} 35. Qxh8 {[%emt 0:00:15]} Qe4+ {[%emt 0:00:28]} 0-1

[Event "AUT 2nd BL Ost 2021-22"]
[Site "Austria"]
[Date "2022.04.04"]
[Round "11.14"]
[White "Ganaus, Hannes"]
[Black "Videki, Sandor"]
[Result "1/2-1/2"]
[ECO "D13"]
[WhiteElo "2253"]
[BlackElo "2402"]
[Annotator "ChessBase"]
[PlyCount "38"]
[EventDate "2022.04.01"]
[EventType "team-tourn"]
[EventCountry "AUT"]
[SourceTitle "playchess.com"]
[Source "ChessBase"]
[SourceQuality "1"]
[TimeControl "40/5400+30:1800+30"]

1. d4 {[%emt 0:00:30]} d5 {[%emt 14:00:46]} 2. Nf3 Nf6 3. c4 c6 4. cxd5 cxd5 5. Nc3 Nc6 6. Bf4 a6 7. a3 Bf5 8. e3 e6 9. Be2 Bd6 10. Bxd6 Qxd6 11. O-O O-O 12. Rc1 Rac8 13. Nh4 Bg6 14. Nxg6 hxg6 15. f4 Rc7 16. Bd3 Na5 17. Na2 Rfc8 18. Qe2 Rxc1 19. Rxc1 Rxc1+ 1/2-1/2

[Event "AUT 2nd BL Ost 2021-22"]
[Site "Austria"]
[Date "2022.04.04"]
[Round "11.15"]
[White "Neumeier, Klaus"]
[Black "Batyte, Daiva"]
[Result "1/2-1/2"]
[ECO "E06"]
[WhiteElo "2271"]
[BlackElo "2105"]
[Annotator "ChessBase"]
[PlyCount "116"]
[EventDate "2022.04.01"]
[EventType "team-tourn"]
[EventCountry "AUT"]
[SourceTitle "playchess.com"]
[Source "ChessBase"]
[SourceQuality "1"]
[TimeControl "40/5400+30:1800+30"]

1. c4 {[%emt 0:00:05]} e6 {[%emt 0:00:06]} 2. g3 {[%emt 0:00:22]} d5 {[%emt 0:00:06]} 3. Bg2 {[%emt 0:00:10]} Nf6 {[%emt 0:01:47]} 4. Nf3 {[%emt 0:00:23]} c5 {[%emt 0:00:23]} 5. O-O {[%emt 0:00:39]} Nc6 {[%emt 0:00:24]} 6. d4 {[%emt 0:01:21]} Be7 {[%emt 0:06:15]} 7. dxc5 {[%emt 0:02:19]} Bxc5 {[%emt 0:00:47]} 8. cxd5 {[%emt 0:01:16]} Nxd5 {[%emt 0:01:35]} 9. Qc2 {[%emt 0:05:11]} Qb6 {[%emt 0:09:55]} 10. a3 {[%emt 0:04:25]} a5 {[%emt 0:00:09]} 11. e4 {[%emt 0:06:36]} Nf6 {[%emt 0:01:28]} 12. Nc3 {[%emt 0:00:52]} Nd4 {[%emt 0:00:46]} 13. Nxd4 {[%emt 0:19:46]} Bxd4 {[%emt 0:00:34]} 14. Bf4 {[%emt 0:05:06]} e5 {[%emt 0:02:08]} 15. Bg5 {[%emt 0:01:05]} O-O {[%emt 0:00:19]} 16. Ne2 {[%emt 0:13:39]} Ra6 {[%emt 0:04:13]} 17. Nxd4 {[%emt 0:01:32]} Qxd4 {[%emt 0:00:32]} 18. Be3 {[%emt 0:04:29]} Qd7 {[%emt 0:02:31]} 19. h3 {[%emt 0:03:04]} Rc6 {[%emt 0:03:12]} 20. Qe2 {[%emt 0:03:22]} Qc7 {[%emt 0:01:20]} 21. Rac1 {[%emt 0:00:52]} Be6 {[%emt 0:03:18]} 22. Rxc6 {[%emt 0:00:47]} Qxc6 {[%emt 0:00:39]} 23. Rc1 {[%emt 0:01:19]} Qd7 {[%emt 0:00:40]} 24. Kh2 {[%emt 0:01:31]} b5 {[%emt 0:02:34]} 25. Rc5 {[%emt 0:06:07]} Bc4 {[%emt 0:06:11]} 26. Qe1 {[%emt 0:00:14]} Qd8 {[%emt 0:04:09]} 27. b3 {[%emt 0:04:59]} Bxb3 {[%emt 0:04:38]} 28. Rxb5 {[%emt 0:00:16]} a4 {[%emt 0:00:26]} 29. Rxe5 {[%emt 0:00:41]} Qd6 {[%emt 0:01:03]} 30. Ra5 {[%emt 0:04:50]} Re8 {[%emt 0:01:15]} 31. Qb4 {[%emt 0:02:37]} Qe6 {[%emt 0:02:12]} 32. Rb5 {[%emt 0:02:22]} h6 {[%emt 0:01:34]} 33. Rb6 {[%emt 0:01:17]} Qe5 {[%emt 0:01:51]} 34. Bd4 {[%emt 0:00:25]} Qe7 {[%emt 0:02:27]} 35. Qxe7 {[%emt 0:00:35]} Rxe7 {[%emt 0:00:07]} 36. Bxf6 {[%emt 0:00:37]} gxf6 {[%emt 0:00:07]} 37. Rxf6 {[%emt 0:00:11]} Kg7 {[%emt 0:00:12]} 38. Rd6 {[%emt 0:02:45]} Rc7 {[%emt 0:00:31]} 39. f4 {[%emt 0:00:45]} Rc2 {[%emt 0:02:39]} 40. f5 {[%emt 0:00:15]} h5 {[%emt 0:00:36]} 41. g4 {[%emt 0:03:26]} hxg4 {[%emt 0:03:12]} 42. hxg4 {[%emt 0:00:06]} Ra2 {[%emt 0:00:24]} 43. g5 {[%emt 0:03:55]} Rxa3 {[%emt 0:01:08]} 44. g6 {[%emt 0:06:37]} Ra1 {[%emt 0:05:18]} 45. gxf7 {[%emt 0:00:39]} Kxf7 {[%emt 0:00:25]} 46. e5 {[%emt 0:06:17]} Re1 {[%emt 0:02:23]} 47. Bd5+ {[%emt 0:03:51]} Bxd5 {[%emt 0:00:22]} 48. Rxd5 {[%emt 0:00:06]} a3 {[%emt 0:00:05]} 49. Ra5 {[%emt 0:03:13]} a2 {[%emt 0:00:16]} 50. Ra7+ {[%emt 0:00:09]} Kf8 {[%emt 0:00:14]} 51. Rxa2 {[%emt 0:00:14]} Rxe5 {[%emt 0:00:17]} 52. Rf2 {[%emt 0:00:06]} Kf7 {[%emt 0:00:37]} 53. Kg3 {[%emt 0:00:06]} Kf6 {[%emt 0:00:10]} 54. Kg4 {[%emt 0:00:06]} Re4+ {[%emt 0:00:24]} 55. Rf4 {[%emt 0:00:13]} Re1 {[%emt 0:00:16]} 56. Ra4 {[%emt 0:01:48]} Rg1+ {[%emt 0:00:20]} 57. Kf4 {[%emt 0:00:06]} Rf1+ {[%emt 0:00:14]} 58. Kg4 {[%emt 0:00:06]} Rg1+ {[%emt 0:00:07]} 1/2-1/2

[Event "AUT 2nd BL Ost 2021-22"]
[Site "Austria"]
[Date "2022.04.04"]
[Round "11.16"]
[White "Schweitzer, Werner"]
[Black "Hechl, Gerald"]
[Result "0-1"]
[ECO "B00"]
[WhiteElo "2060"]
[BlackElo "2209"]
[Annotator "ChessBase"]
[PlyCount "36"]
[EventDate "2022.04.01"]
[EventType "team-tourn"]
[EventCountry "AUT"]
[SourceTitle "playchess.com"]
[Source "ChessBase"]
[SourceQuality "1"]
[TimeControl "40/5400+30:1800+30"]

1. e4 {[%emt 0:00:02]} b6 {[%emt 0:00:24]} 2. Nc3 {[%emt 0:03:32]} Bb7 {[%emt 0:00:04]} 3. d4 {[%emt 0:00:48]} e6 {[%emt 0:00:05]} 4. Nf3 {[%emt 0:01:51]} Bb4 {[%emt 0:00:08]} 5. Bd3 {[%emt 0:00:06]} Nf6 {[%emt 0:00:07]} 6. Qe2 {[%emt 0:01:17]} d5 {[%emt 0:00:03]} 7. exd5 {[%emt 0:07:04]} Qxd5 {[%emt 0:00:12]} 8. O-O {[%emt 0:00:41]} Bxc3 {[%emt 0:00:02]} 9. bxc3 {[%emt 0:00:23]} O-O {[%emt 0:00:07]} 10. Qe5 {[%emt 0:02:59]} Qc6 {[%emt 0:08:55]} 11. Bd2 {[%emt 0:04:56]} Qd6 {[%emt 0:08:52]} 12. Qe2 {[%emt 0:08:23]} Nbd7 {[%emt 0:03:03]} 13. Ng5 {[%emt 0:13:08]} c5 {[%emt 0:08:19]} 14. Be3 {[%emt 0:06:13]} h6 {[%emt 0:01:57]} 15. Nh3 {[%emt 0:12:03]} e5 {[%emt 0:07:28]} 16. dxe5 {[%emt 0:01:20]} Nxe5 {[%emt 0:02:35]} 17. Rad1 {[%emt 0:00:21]} Nxd3 {[%emt 0:02:49]} 18. Rxd3 {[%emt 0:01:05]} Qc6 {[%emt 0:00:29]} 0-1

[Event "AUT 2nd BL Ost 2021-22"]
[Site "Austria"]
[Date "2022.04.04"]
[Round "11.17"]
[White "Lucaci, Marius"]
[Black "Gattermayer, Robert"]
[Result "1-0"]
[ECO "C54"]
[WhiteElo "2114"]
[BlackElo "1962"]
[Annotator "ChessBase"]
[PlyCount "83"]
[EventDate "2022.04.01"]
[EventType "team-tourn"]
[EventCountry "AUT"]
[SourceTitle "playchess.com"]
[Source "ChessBase"]
[SourceQuality "1"]
[TimeControl "40/5400+30:1800+30"]

1. e4 {[%emt 0:00:02]} e5 {[%emt 0:00:22]} 2. Nf3 {[%emt 0:01:15]} Nc6 {[%emt 0:00:09]} 3. Bc4 {[%emt 0:00:32]} Bc5 {[%emt 0:00:24]} 4. O-O {[%emt 0:03:54]} Nf6 {[%emt 0:00:15]} 5. d3 {[%emt 0:00:56]} O-O {[%emt 0:00:21]} 6. c3 {[%emt 0:01:36]} d6 {[%emt 0:03:09]} 7. Bg5 {[%emt 0:07:01]} h6 {[%emt 0:03:51]} 8. Bh4 {[%emt 0:03:06]} a6 {[%emt 0:00:58]} 9. d4 {[%emt 0:02:56]} Ba7 {[%emt 0:01:18]} 10. dxe5 {[%emt 0:04:09]} Nxe5 {[%emt 0:01:18]} 11. Nxe5 {[%emt 0:07:17]} dxe5 {[%emt 0:00:04]} 12. Nd2 {[%emt 0:04:02]} g5 {[%emt 0:02:47]} 13. Bg3 {[%emt 0:00:17]} Bg4 {[%emt 0:00:28]} 14. Be2 {[%emt 0:01:19]} Bxe2 {[%emt 0:01:54]} 15. Qxe2 {[%emt 0:00:07]} Qe7 {[%emt 0:02:24]} 16. h4 {[%emt 0:01:26]} Rad8 {[%emt 0:06:00]} 17. Rad1 {[%emt 0:09:44]} Rd6 {[%emt 0:02:43]} 18. Nf3 {[%emt 0:14:38]} Nd7 {[%emt 0:01:05]} 19. Qc4 {[%emt 0:08:21]} Bb6 {[%emt 0:01:57]} 20. hxg5 {[%emt 0:07:05]} hxg5 {[%emt 0:00:09]} 21. Rd5 {[%emt 0:00:42]} Re6 {[%emt 0:01:54]} 22. Rfd1 {[%emt 0:00:53]} Rc6 {[%emt 0:09:25]} 23. Qe2 {[%emt 0:01:23]} Rd6 {[%emt 0:06:08]} 24. Nxe5 {[%emt 0:00:52]} Nxe5 {[%emt 0:00:34]} 25. Rxe5 {[%emt 0:00:19]} Re6 {[%emt 0:04:58]} 26. Rxe6 {[%emt 0:04:09]} Qxe6 {[%emt 0:01:09]} 27. Rd5 {[%emt 0:00:41]} f6 {[%emt 0:00:53]} 28. Qc4 {[%emt 0:09:25]} Kh7 {[%emt 0:06:50]} 29. Qd3 {[%emt 0:01:55]} Rf7 {[%emt 0:01:43]} 30. Rd8 {[%emt 0:02:44]} Kg7 {[%emt 0:01:10]} 31. Qf3 {[%emt 0:01:32]} Rd7 {[%emt 0:02:26]} 32. Rb8 {[%emt 0:00:51]} Qf7 {[%emt 0:00:35]} 33. Rxb7 {[%emt 0:00:43]} Qxa2 {[%emt 0:00:24]} 34. Rb8 {[%emt 0:00:51]} Qf7 {[%emt 0:01:12]} 35. Qg4 {[%emt 0:00:30]} a5 {[%emt 0:03:39]} 36. e5 {[%emt 0:00:10]} Re7 {[%emt 0:02:10]} 37. exf6+ {[%emt 0:01:01]} Qxf6 {[%emt 0:00:02]} 38. Qh5 {[%emt 0:00:15]} Rf7 {[%emt 0:03:42]} 39. Rh8 {[%emt 0:00:17]} Bxf2+ {[%emt 0:00:13]} 40. Kh1 {[%emt 0:00:08]} Qf5 {[%emt 0:01:23]} 41. Be5+ {[%emt 0:30:15]} Qxe5 {[%emt 0:30:33]} 42. Qh6# {[%emt 0:00:08]} 1-0